Cogmind - Beta 15 @@@ ROGUE MODE // 2025.09.20 @ 14:57:46 Player: beans Result: Destroyed by 8R-AWN with 8R-AWN's Boregun Performance ------------- Evolutions (0) 0 Regions Visited (3) 600 Robots Destroyed (4) 20 Value Destroyed (35) 35 Prototype IDs (25) 500 Alien Tech Used (0) 0 Bonus (206) 206 TOTAL SCORE: 1361 Bonus ------- Aligned with FarCom 300 Friendly Fire -94 Cogmind --------- Core Integrity 0/250 Matter 147/300 Energy 84/100 System Corruption 0% Temperature Cool (0) Movement Core (50) Location -10/Exiles Parts ------- > --- POWER (1) -------- (None) > --- PROPULSION (2) --- (None) > --- UTILITY (2) ------ (None) > --- WEAPON (2) ------- (None) > --- INVENTORY (5) ---- Reaction Control System PSU Rigger Shock Rifle Field Lobotomy Kit (5) Peak State ------------ > --- POWER ------------ (None) > --- PROPULSION ------- Light Treads Light Treads > --- UTILITY ---------- Improved Light Armor Plating PSU Rigger > --- WEAPON ----------- Assault Rifle Improved Grenade Launcher > --- INVENTORY -------- Flight Unit Reaction Control System Shock Rifle Field Lobotomy Kit [Rating: 18] Favorites ----------- Power Ion Engine Engine Ion Engine Propulsion Light Treads Treads Light Treads Flight Unit Flight Unit Utility Improved Light Armor Plating Device PSU Rigger Protection Improved Light Armor Plating Weapon Assault Rifle Ballistic Gun Assault Rifle Launcher Improved Grenade Launcher Build | -11 -10 -10 -10 ------- Run | Yrd Mat Min Exi Slots Evolved . | . . . . Power . | . . . . Propulsion . | . . . . Utility . | . . . . Weapon . | . . . . Parts Attached 8 | 4 . 1 3 Power 1 | 1 . . . Engine 1 | 1 . . . Core . | . . . . Reactor . | . . . . Propulsion 3 | 2 . . 1 Treads 2 | 2 . . . Leg . | . . . . Wheel . | . . . . Hover . | . . . . Flight 1 | . . . 1 Utility 2 | . . . 2 Device 1 | . . . 1 Storage . | . . . . Processor . | . . . . Hackware . | . . . . Protection 1 | . . . 1 Artifact . | . . . . Weapon 2 | 1 . 1 . Energy Gun . | . . . . Energy Cannon . | . . . . Ballistic Gun 1 | 1 . . . Ballistic Cannon . | . . . . Launcher 1 | . . 1 . Special Weapon . | . . . . Impact Weapon . | . . . . Slashing Weapon . | . . . . Piercing Weapon . | . . . . Special Melee Weapon . | . . . . Unidentified Prototypes . | . . . . Parts Lost 3 | . . 1 2 Power 1 | . . 1 . Propulsion 1 | . . . 1 Utility . | . . . . Weapon 1 | . . . 1 Highest Loss Streak 2 | . . 1 2 To Critical Strikes . | . . . . Average Backups 2 | . . 2 4 Power . | . . . . Propulsion . | . . . 1 Utility 1 | . . 1 1 Weapon . | . . . 1 Tool/Special . | . . . . Unused Backups 4 | 1 . . 3 Power 1 | 1 . . . Propulsion . | . . . . Utility 1 | . . . 1 Weapon 1 | . . . 1 Tool/Special 1 | . . . 1 Average Slot Usage (%) 60 | . 52 60 61 Engine 6 | . 13 9 . Treads 27 | . 26 28 26 Protection 2 | . . . 5 Ballistic Gun 13 | . 13 14 12 Launcher 9 | . . 8 13 Peak Build Rating 18 | 4 4 8 18 Average Rating 6 | 2 3 6 9 On Entrance 3 | . 4 4 7 Naked Turns 10 | . 7 . 3 Heaviest Build 13 | 7 7 13 13 Greatest Support 40 | 40 40 40 40 Greatest Overweight (x) 2 | . . . 2 Average Overweight (x) . | . . . . Largest Inventory Capacity 5 | 5 5 5 5 Average Capacity 5 | 5 5 5 5 Most Carried 5 | 2 4 5 5 Average Carried 2 | . . 2 4 Final Capacity 5 | 5 5 5 5 Final Carried 4 | . . 4 4 Class Distribution -------------------- 100% | Mutant Dominant Class ---------------- Mutant | -10/Materials Mutant | -10/Mines Mutant | -10/Exiles Resources | -11 -10 -10 -10 ----------- Run | Yrd Mat Min Exi Matter Collected 274 | 141 . 133 . Remotely . | . . . . Salvage Created 56 | . . 50 6 Parts 4 | . . 4 . Haulers Intercepted . | . . . . Recyclers Shooed . | . . . . Parts Field Recycled . | . . . . Retrieved Matter . | . . . . Parts Self-Destructed . | . . . . Prevented . | . . . . Kills | -11 -10 -10 -10 ------- Run | Yrd Mat Min Exi Combat Hostiles Destroyed 6 | . . 3 3 Guns 3 | . . 3 . AOE 3 | . . . 3 Classes Destroyed 3 | . . 2 1 Builder 1 | . . 1 . Swarmer 3 | . . 3 . Assembled 3 | . . . 3 Best Kill Streak 3 | . . 3 3 Combat Bots Only 3 | . . 3 3 Max Kills in Single Turn 2 | . . 1 2 Gunslinging . | . . . . Exploded 2 | . . . 2 Melee . | . . . . Uniques/NPCs Destroyed . | . . . . Combat | -11 -10 -10 -10 -------- Run | Yrd Mat Min Exi Hostile Shots Fired 64 | . . 45 19 Missed 14 | . . 9 5 Hits 50 | . . 36 14 Projectile 50 | . . 36 14 Critical Strikes 5 | . . 1 4 Damage Taken 561 | . . 307 254 Core 258 | . . 86 172 Absorbed by Shields . | . . . . Core Remaining (%) 100 | 100 . . . Volleys Fired 22 | . . 19 3 Largest 2 | . . 2 1 Hottest 56 | . . 56 36 Shots Fired 24 | . . 21 3 Gun 19 | . . 19 . Cannon . | . . . . Launcher 5 | . . 2 3 Special . | . . . . Kinetic 19 | . . 19 . Thermal . | . . . . Explosive 5 | . . 2 3 Electromagnetic . | . . . . Robot Hit Streak 5 | . . 5 4 Robot Miss Streak 6 | . . 6 . Penetration Max . | . . . . Secondary Targets . | . . . . Shots Hit Robots 12 | . . 9 3 Core Hits 14 | . . 7 7 Critical Kills . | . . . . Critical Parts Destroyed . | . . . . Critical Strikes . | . . . . Melee Attacks . | . . . . Impact . | . . . . Slashing . | . . . . Piercing . | . . . . Sneak Attacks . | . . . . Combat Hostiles . | . . . . Follow-up Attacks . | . . . . Damage Inflicted 502 | . . 288 214 Guns 118 | . . 118 . Cannons . | . . . . Explosions 384 | . . 170 214 Melee . | . . . . Ramming . | . . . . Kinetic 118 | . . 118 . Thermal . | . . . . Explosive 384 | . . 170 214 Electromagnetic . | . . . . Impact . | . . . . Slashing . | . . . . Piercing . | . . . . Highest Corruption . | . . . . Average Corruption . | . . . . Corruption Purged . | . . . . Corruption Blocked . | . . . . Overload Shots . | . . . . Overflow Damage 21 | . . 21 . Projectiles . | . . . . Explosions 21 | . . 21 . Melee . | . . . . Knockbacks . | . . . . Impact . | . . . . Kinetic . | . . . . Secondary . | . . . . Self-Inflicted Damage 24 | . . 24 . Shots 2 | . . 2 . Rammed . | . . . . Targets Rammed . | . . . . Kicked . | . . . . Crushed . | . . . . Highest Temperature . | . . . . Average Temperature . | . . . . Received Heat Transfer 40 | . . . 40 Siege Activations . | . . . . Martial Activations . | . . . . Shielding Activations . | . . . . Robots Disrupted . | . . . . Combat Hostiles . | . . . . Robots Corrupted . | . . . . Combat Hostiles . | . . . . Parts Fried . | . . . . Impact Corruptions . | . . . . Robots Melted . | . . . . Combat Hostiles . | . . . . Parts Melted . | . . . . Heat Transferred . | . . . . Parts Sabotaged . | . . . . Parts Stolen . | . . . . Parts Stripped . | . . . . Power Chain Reactions . | . . . . Alert | -11 -10 -10 -10 ------- Run | Yrd Mat Min Exi Maximum Alert Level . | . . . . Low Security (%) 100 | 100 100 100 . Level 1 . | . . . . Level 2 . | . . . . Level 3 . | . . . . Level 4 . | . . . . Level 5 . | . . . . High Security . | . . . . Max Security . | . . . . Peak Influence 50 | . . 50 . Initial . | . . . . Average 5 | . . 7 . Influence Increases 93 | . . 93 . Destroy 0b10 Robot/C 60 | . . 60 . Destroy 0b10 Robot/NC 5 | . . 5 . Destroy Leader 10 | . . 10 . Destroy Structure 18 | . . 18 . Influence Decreases 93 | . . 93 . Time Decay 83 | . . 83 . Lost Part 10 | . . 10 . Squads Dispatched 1 | . . 1 . Investigation 1 | . . 1 . Extermination . | . . . . Reinforcement . | . . . . Assault . | . . . . Garrison . | . . . . Intercept . | . . . . Searches Triggered . | . . . . Construction Impeded . | . . . . Haulers Reinforced . | . . . . Active Scanning Responses . | . . . . Cargo Convoy Interrupts . | . . . . Stealth | -11 -10 -10 -10 --------- Run | Yrd Mat Min Exi Distress Signals . | . . . . Communications Jammed . | . . . . Distress Signals . | . . . . Times Spotted 12 | . 1 3 8 Peak Tracking Total 9 | . 1 3 9 Tactical Retreats . | . . . . Traps | -11 -10 -10 -10 ------- Run | Yrd Mat Min Exi Traps Triggered 2 | . 2 . . Indirectly . | . . . . Trap Hack Attempts . | . . . . Triggered . | . . . . Disarmed . | . . . . Reprogrammed . | . . . . Reused . | . . . . Traps Extracted . | . . . . Installed . | . . . . Triggered . | . . . . Exploded 1 | . . . 1 Time Bombs Activated 1 | . . . 1 Machines | -11 -10 -10 -10 ---------- Run | Yrd Mat Min Exi Machines Disabled 1 | . . . 1 Max in Single Turn 1 | . . . 1 Machines Repaired . | . . . . Machines Dismantled . | . . . . Machines Sabotaged . | . . . . Overloaded Fab Kills . | . . . . Hacking | -11 -10 -10 -10 --------- Run | Yrd Mat Min Exi Machines Accessed 3 | . 1 1 1 Terminals 1 | . 1 . . Fabricators . | . . . . Repair Stations . | . . . . Recycling Units . | . . . . Scanalyzers . | . . . . Garrison Access . | . . . . Total Hacks 8 | . 6 1 1 Successful 3 | . 1 1 1 Failed 5 | . 5 . . Catastrophic . | . . . . Database Lockouts . | . . . . Manual 1 | . . . 1 Terminals 6 | . 6 . . Fabricators . | . . . . Repair Stations . | . . . . Recycling Units . | . . . . Scanalyzers . | . . . . Garrison Access . | . . . . Terminal Hacks 3 | . 1 1 1 Prototype ID Bank 1 | . 1 . . Open Door 1 | . . 1 . Proto ID Catalog 1 | . . . 1 Fabricator Hacks . | . . . . Repair Station Hacks . | . . . . Recycling Unit Hacks . | . . . . Scanalyzer . | . . . . Garrison Access Hacks . | . . . . Unauthorized Hacks . | . . . . Terminals . | . . . . Fabricators . | . . . . Repair Stations . | . . . . Recycling Units . | . . . . Scanalyzers . | . . . . Garrison Access . | . . . . Data Cores Recovered . | . . . . Used . | . . . . Hacking Detections 1 | . 1 . . Full Trace Events . | . . . . Feedback Events . | . . . . Feedback Blocked . | . . . . Robot Schematics Acquired . | . . . . Robots Built . | . . . . Authchips . | . . . . Time . | . . . . Total Robot Build Rating . | . . . . Part Schematics Acquired . | . . . . Parts Built . | . . . . Authchips . | . . . . Time . | . . . . Total Part Build Rating . | . . . . Parts Repaired . | . . . . Time . | . . . . Parts Recycled . | . . . . Recycled Matter . | . . . . Retrieved Matter . | . . . . Retrieved Components . | . . . . Parts Scanalyzed . | . . . . Part Schematics Acquired . | . . . . Parts Damaged . | . . . . Bothacking | -11 -10 -10 -10 ------------ Run | Yrd Mat Min Exi Used RIF Installer . | . . . . Robots Hacked . | . . . . Non-combat . | . . . . Combat . | . . . . Robot Hacks Applied . | . . . . Relay Couplers Released . | . . . . Fabnet Peak Effective % . | . . . . Robots Rewired . | . . . . Allies Hacked . | . . . . Hacks Repelled . | . . . . Allies | -11 -10 -10 -10 -------- Run | Yrd Mat Min Exi Total Allies 2 | . . 2 . Largest Group 2 | . . 2 2 Highest-Rated Group 45 | . . 45 45 Highest-Rated Ally 31 | . . 31 31 Total Orders . | . . . . Ally Attacks . | . . . . Total Damage . | . . . . Kills . | . . . . Allies Corrupted . | . . . . Allies Melted . | . . . . Intel | -11 -10 -10 -10 ------- Run | Yrd Mat Min Exi Active Infowar (turns) . | . . . . Robot Analysis Total . | . . . . Derelict Logs Recovered 2 | . . 2 . Drone Launches . | . . . . Drone Recoveries . | . . . . Exploration | -11 -10 -10 -10 ------------- Run | Yrd Mat Min Exi Turns Passed 1129 | 64 127 546 392 Spaces Moved 627 | 40 78 297 212 Core 19 | 8 4 . 7 Treads 606 | 32 74 297 203 Legs . | . . . . Wheels . | . . . . Hover . | . . . . Flight 2 | . . . 2 Fastest Speed 40 | 50 50 160 40 Average Speed 156 | 138 154 160 155 Slowest Speed 160 | 160 160 160 160 Overloaded Moves . | . . . . Propulsion Burnouts . | . . . . Robots Hopped . | . . . . Potential Cave-ins 5 | . . . 5 Cave-ins Triggered . | . . . . Exploration Rate (%) 30 | 4 16 64 39 Regions Visited 3 Branch Regions 2 Pre-discovered Areas 3 | . . 3 . Known Exits Taken . | . . . . Unknown Exits Taken 3 | 1 1 1 . Scrap Searched 1 | . . 1 . Spaces Dug 12 | . . 12 . Terrain Destroyed 44 | . . 23 21 Melee . | . . . . Projectile . | . . . . AOE 44 | . . 23 21 Terrain Rammed . | . . . . Walls Destroyed . | . . . . Machines Disabled . | . . . . Actions | -11 -10 -10 -10 --------- Run | Yrd Mat Min Exi Total 754 | 49 85 347 273 Wait 73 | . . 26 47 Move 624 | 39 77 296 212 Hop . | . . . . Pick Up 16 | 5 4 5 2 Fast Attach . | . . . . Attach 12 | 4 4 1 3 Detach 1 | . . . 1 Swap . | . . . . Drop 5 | 1 . . 4 Fire 22 | . . 19 3 Melee . | . . . . Ram . | . . . . Kick . | . . . . Crush . | . . . . Escape Stasis . | . . . . Rewire . | . . . . Trap 1 | . . . 1 Miscellaneous . | . . . . Route ------- -11/Scrapyard -10/Materials -10/Mines (discovered 4 exits: [*Mat x2] / *Exi / [*Sub]) -10/Exiles History --------- Turn | Location | Event 4 | -11/Scrapyard | Discovered new exit (range 14) 65 | -11/Scrapyard | Entered Materials 170 | -10/Materials | Discovered new exit (range 10) 192 | -10/Materials | Entered Mines 247 | -10/Mines | Discovered new exit (range 8) 267 | -10/Mines | Discovered new exit (range 3) 310 | -10/Mines | Build established: Mutant 386 | -10/Mines | Met a Derelict shopkeep closing up shop 438 | -10/Mines | Discovered new exit (range 13) 584 | -10/Mines | Learned location of Storage (-7) 721 | -10/Mines | Deemed a non-threat by the Exiles lab entrance 721 | -10/Mines | Discovered new exit (range 5) 738 | -10/Mines | Entered Exiles 738 | -10/Exiles | Accompanied by 2 allies 768 | -10/Exiles | Led the pair of lost Derelicts to a safe place 823 | -10/Exiles | Met 8R-AWN 850 | -10/Exiles | Met EX-HEX 896 | -10/Exiles | Met EX-BIN 916 | -10/Exiles | Aligned with FarCom system 917 | -10/Exiles | Given EX-Vault access code 954 | -10/Exiles | Opened EX-Vault 967 | -10/Exiles | Found Field Lobotomy Kit 978 | -10/Exiles | Found PSU Rigger 1013 | -10/Exiles | Warned to stay clear of 0b10 Research branches 1108 | -10/Exiles | Attacked by the Exiles 1114 | -10/Exiles | Core integrity fell below 50% 1127 | -10/Exiles | Core integrity fell below 20% 1130 | -10/Exiles | Destroyed by 8R-AWN with 8R-AWN's Boregun Last Messages --------------- HV Slug penetrates Wall. Penetrated by HV Slug. HV Slug penetrates Wall. as-33446 destroyed. as-32372 destroyed. Penetrated by HV Slug. HV Slug penetrates Wall. Penetrated by HV Slug. HV Slug penetrates Wall. Penetrated by HV Slug. HV Slug penetrates Wall. Dropped Imp. Grenade Launcher. Dropped Imp. Light Armor Plating. Penetrated by HV Slug. HV Slug penetrates Wall. Penetrated by HV Slug. HV Slug penetrates Wall. Flight Unit destroyed. The unstable cave ceiling collapses. Penetrated by HV Slug. Map ----- +----------------------------------------------------+ | #????????????????????????????????????????????????? | | #????????????????????????????????????????????????? | | #????????????????????????????????????????????????? | | #????????????????????????????????????????????????? | | #????????????????????????????????????????????????? | | #????????????????????????????????????????????????? | | #????????????????????????????????????????????????? | | "????????????????????????????????????????????????? | | #????????????????????????????????????????????????? | | "????????????????????????????????????????????????? | | #????????????????????????????????????????????????? | | #????????????????????????????????????????????????? | | #????????????????????????????????????????????????? | | ?????????????????????????????????????????????????? | | ?????????????????????????????????????????????????? | | ?????????????????????????????????????????????????? | | #######??????????????????????????????????????????? | | """"""##??????????????????????????????????? ????? | | "" """"##?????????????????????????????????# #??? | | " " #???????????????????????????????## ##?? | | " """#???????????????????????????????# #?? | | " "#???????????#####???????????????# #?? | | " "##?????????##" #??????????????## ??? | | ""###???????#" ########??????## #???? | | """#??????##" ## ## ##?????# #???? | | "#????### @ ##??### #????? | | ##???# #""# #????? | | ##?## g# !; #?????? | | ### %aaa ]== * ##????? | | ## a #????? | | #### ##???? | | ""#?#"" ###?? | | #"""##?#### # ##### * ### | | ######?????######???##### # | | ##???????????????????????### | | " ##??????????????????????????### | | """ ""#?????????????????????????????### | | "#" "##??????????????????????????????#" | | ?##"""""""##???????????????????????????????#### | | ??#########???????????????????????????????????# | | ??????????????????????????????????????????????## | | ???????????????????????????????????????????????### | | ?????????????????????????????????????????????????# | | ?????????????????????????????????????????????????# | | ?????????????????????????????????????????????????? | | ?????????????????????????????????????????????????? | | ?????????????????????????????????????????????????? | | ?????????????????????????????????????????????????? | | ?????????????????????????????????????????????????? | | ?????????????????????????????????????????????????? | +----------------------------------------------------+ Best States ------------- Heat Dissipation 25 Energy Generation 10 Energy Capacity 250 Matter Stores 233 Matter Capacity 300 Sight Range 16 Terrain Scan Density 10 Armor Coverage 150 Evasion (%) 50 Recoil Reduction 2 Item Schematics ----------------- None Robot Schematics ------------------ None Fabricated ------------ Nothing Repaired ---------- Nothing Alien Tech Used ----------------- None Achievements -------------- None Challenges ------------ None Game ------ Seed AssembledLightningPropulsion Manual? 0 Play Time 00:06:08 Cumulative 150.5 hours Start 2025.09.20 @ 14:53:18 End 2025.09.20 @ 14:57:46 Sessions 1 Manual Loads 0 Difficulty Rogue Special Mode None Game No. 488 Rogue 488 Adventurer 0 Explorer 0 Win Type - Total 0 Types 0/0/0/0/0/0/0/0/0/0 Lore% 54 Gallery% 52 Achievement% 42 Wizard Run 0 Options --------- Layout 1 ASCII 0 Keyboard 0 Movement Mouse Keybinds 0 Fullscreen 2 Font 24/Smallcaps Map View 50x35 Zoom Use 0% Tactical HUD 0 Map Filters NONE Filters NONE Steam 1 RUN: 8c9adf15-7322-4cc8-9d12-19d87f75dfdd